Cogmind - Beta 16.1 @@@ ROGUE MODE // 2026.02.11 @ 18:18:16 Player: Rudrot Result: Destroyed by G-47 Trooper with Particle Gun Performance ------------- Evolutions (2) 1000 Regions Visited (3) 600 Robots Destroyed (62) 310 Value Destroyed (1385) 1385 Prototype IDs (3) 60 Alien Tech Used (0) 0 Bonus (-12) -12 TOTAL SCORE: 3343 Bonus ------- Friendly Fire -12 Cogmind --------- Core Integrity 0/550 Matter 8/300 Energy 125/125 System Corruption 1% Temperature Cool (9) Movement Rolling (80) Location -8/Materials Parts ------- > --- POWER (1) -------- Light Ion Engine > --- PROPULSION (3) --- Wheel Wheel > --- UTILITY (5) ------ Small Storage Unit Weight Redist. System Advanced Targeting Computer > --- WEAPON (2) ------- Katana > --- INVENTORY (8) ---- Deuterium Engine Medium Matter Pod (0) Trap Scanner Improved Terrain Scanner High-powered Shotgun Shock Bomb Launcher Improved Grenade Launcher Improved Grenade Launcher Peak State ------------ > --- POWER ------------ Light Ion Engine Deuterium Engine > --- PROPULSION ------- Improved Hover Unit Improved Hover Unit Cesium-ion Thruster > --- UTILITY ---------- Small Storage Unit Weight Redist. System Trap Scanner Advanced Targeting Computer Hardlight Generator Rainbow Chip > --- WEAPON ----------- Improved Assault Rifle Assault Cannon > --- INVENTORY -------- Deuterium Engine Medium Matter Pod Pulse Rifle Battle Cannon Shock Bomb Launcher Improved Grenade Launcher Improved Grenade Launcher Katana [Rating: 44] Favorites ----------- Power Ion Engine Engine Ion Engine Propulsion Improved Hover Unit Leg Carbon-fiber Leg Wheel Wheel Hover Unit Improved Hover Unit Flight Unit Cesium-ion Thruster Utility Small Storage Unit Device Weight Redist. System Storage Small Storage Unit Processor Advanced Targeting Computer Weapon Autogun Ballistic Gun Autogun Ballistic Cannon Assault Cannon Launcher Improved Grenade Launcher Special Weapon Flamer Slashing Weapon Katana Build | -11 -10 -10 -8 ------- Run | Yrd Mat Sub Mat Slots Evolved 4 | . . . 4 Power . | . . . . Propulsion 1 | . . . 1 Utility 3 | . . . 3 Weapon . | . . . . Parts Attached 55 | 6 9 6 34 Power 8 | 1 1 1 5 Engine 8 | 1 1 1 5 Core . | . . . . Reactor . | . . . . Propulsion 19 | 2 4 1 12 Treads . | . . . . Leg 3 | . . . 3 Wheel 5 | 2 . . 3 Hover 9 | . 4 1 4 Flight 2 | . . . 2 Utility 11 | 1 1 1 8 Device 6 | . 1 1 4 Storage 3 | 1 . . 2 Processor 2 | . . . 2 Hackware . | . . . . Protection . | . . . . Artifact . | . . . . Weapon 17 | 2 3 3 9 Energy Gun . | . . . . Energy Cannon . | . . . . Ballistic Gun 10 | 2 2 3 3 Ballistic Cannon 2 | . . . 2 Launcher 3 | . 1 . 2 Special Weapon 1 | . . . 1 Impact Weapon . | . . . . Slashing Weapon 1 | . . . 1 Piercing Weapon . | . . . . Special Melee Weapon . | . . . . Unidentified Prototypes 3 | . . . 3 Parts Lost 26 | . 2 4 20 Power 3 | . . 1 2 Propulsion 12 | . 2 1 9 Utility 4 | . . 1 3 Weapon 7 | . . 1 6 Highest Loss Streak 8 | . 2 4 8 To Critical Strikes 1 | . . 1 . Average Backups 6 | . 6 6 6 Power . | . . . . Propulsion . | . 1 . . Utility 2 | . 2 2 2 Weapon 3 | . 2 3 3 Tool/Special . | . . . . Unused Backups 8 | . 2 . 6 Power 1 | . . . 1 Propulsion . | . . . . Utility 3 | . 2 . 1 Weapon 4 | . . . 4 Tool/Special . | . . . . Average Slot Usage (%) 80 | . 97 90 67 Engine 9 | . 14 10 7 Leg 1 | . . . 2 Wheel 3 | . 2 . 5 Hover 15 | . 24 28 5 Device 11 | . 12 10 10 Storage 11 | . 14 14 9 Processor 6 | . . . 12 Ballistic Gun 14 | . 27 20 5 Ballistic Cannon 2 | . . . 4 Launcher 1 | . . 5 1 Peak Build Rating 44 | 6 13 13 44 Average Rating 19 | 4 11 11 27 On Entrance 7 | . 6 12 13 Avg Prop Armor Cover (%) 2 | . . . 2 Naked Turns . | . . . . Heaviest Build 32 | 14 16 17 32 Greatest Support 46 | 20 20 20 46 Greatest Overweight (x) 2 | . 1 1 2 Average Overweight (x) . | . . . . Largest Inventory Capacity 8 | 8 8 8 8 Average Capacity 7 | 7 8 8 8 Most Carried 8 | . 8 8 8 Average Carried 6 | . 6 6 6 Final Capacity 8 | 8 8 8 8 Final Carried 8 | . 7 7 8 Class Distribution -------------------- 83% | Mutant 14% | Scavenger-Mutant Dominant Class ---------------- Mutant | -10/Materials Mutant | -10/Subcaves Mutant | -8/Materials Resources | -11 -10 -10 -8 ----------- Run | Yrd Mat Sub Mat Matter Collected 1962 | 194 476 180 1112 Remotely . | . . . . Salvage Created 1705 | . 440 97 1168 Parts 123 | . 42 6 75 Haulers Intercepted 5 | . 2 . 3 Recyclers Shooed 3 | . 1 . 2 Parts Field Recycled . | . . . . Retrieved Matter . | . . . . Parts Self-Destructed . | . . . . Prevented . | . . . . Parts Restored . | . . . . Kills | -11 -10 -10 -8 ------- Run | Yrd Mat Sub Mat Combat Hostiles Destroyed 34 | . 11 3 20 Melee 2 | . . . 2 Guns 19 | . 11 1 7 Cannons 7 | . . . 7 AOE 5 | . . 2 3 Classes Destroyed 12 | . 5 1 6 Worker 5 | . 2 . 3 Builder 8 | . . . 8 Tunneler 1 | . . . 1 Hauler 5 | . 2 . 3 Recycler 3 | . . . 3 Watcher 6 | . 3 . 3 Swarmer 10 | . 7 . 3 Grunt 16 | . 4 . 12 Sentry 2 | . . . 2 Specialist 2 | . . . 2 Hunter 1 | . . . 1 Subdweller 3 | . . 3 . Best Kill Streak 5 | . 5 2 5 Combat Bots Only 5 | . 3 2 5 Max Kills in Single Turn 2 | . 1 1 2 Gunslinging . | . . . . Exploded 2 | . . 1 2 Melee 1 | . . . 1 Uniques/NPCs Destroyed . | . . . . Combat | -11 -10 -10 -8 -------- Run | Yrd Mat Sub Mat Hostile Shots Fired 274 | . 71 20 183 Missed 96 | . 27 8 61 Hits 178 | . 44 12 122 Projectile 178 | . 44 12 122 AOE 1 | . . 1 . Critical Strikes 6 | . . 1 5 Damage Taken 2798 | . 424 304 2070 Core 658 | . 52 43 563 Absorbed by Shields . | . . . . Regen/Repaired (Parts) 12 | . 12 . . Core Remaining (%) 81 | 100 . 62 . Volleys Fired 180 | . 56 13 111 Largest 2 | . 2 2 2 Hottest 130 | . 53 53 130 Shots Fired 311 | . 110 22 179 Gun 207 | . 104 15 88 Cannon 70 | . . . 70 Launcher 32 | . 6 7 19 Special 2 | . . . 2 Kinetic 277 | . 104 15 158 Thermal 2 | . . . 2 Explosive 32 | . 6 7 19 Electromagnetic . | . . . . Robot Hit Streak 14 | . 8 5 14 Robot Miss Streak 3 | . 3 1 3 Penetration Max . | . . . . Secondary Targets 1 | . 1 . . Max Gunslinging Chain 1 | . 1 . . Shots Hit Robots 183 | . 53 10 120 Core Hits 85 | . 19 7 59 Critical Kills 1 | . . . 1 Critical Parts Destroyed 1 | . . . 1 Critical Strikes 5 | . . . 5 Destroy 2 | . . . 2 Blast 3 | . . . 3 Melee Attacks 16 | . . . 16 Impact . | . . . . Slashing 16 | . . . 16 Piercing . | . . . . Sneak Attacks 7 | . . . 7 Combat Hostiles . | . . . . Follow-up Attacks . | . . . . Damage Inflicted 4515 | . 835 364 3316 Guns 1835 | . 835 91 909 Cannons 1124 | . . . 1124 Explosions 893 | . . 273 620 Melee 640 | . . . 640 Ramming . | . . . . Kinetic 2959 | . 835 91 2033 Thermal 23 | . . . 23 Explosive 893 | . . 273 620 Electromagnetic . | . . . . Impact . | . . . . Slashing 640 | . . . 640 Piercing . | . . . . Highest Corruption 1 | . . . 1 Average Corruption 1 | . . . 1 Corruption Purged . | . . . . Corruption Blocked . | . . . . Effects 11 | . . . 11 Message Errors 2 | . . . 2 Matter Fused 2 | . . . 2 Heat Flow Errors 3 | . . . 3 Energy Discharges 1 | . . . 1 Data Loss (minor) 1 | . . . 1 Data Loss (major) 1 | . . . 1 Misfires 1 | . . . 1 Overload Shots . | . . . . Overflow Damage 80 | . . . 80 Projectiles . | . . . . Explosions 11 | . . . 11 Melee 69 | . . . 69 Knockbacks 8 | . . . 8 Impact . | . . . . Kinetic 8 | . . . 8 Secondary . | . . . . Self-Inflicted Damage 79 | . . 25 54 Shots 2 | . . 1 1 Rammed . | . . . . Targets Rammed . | . . . . Kicked . | . . . . Crushed . | . . . . Highest Temperature 250 | . 63 . 250 Average Temperature 41 | . 14 . 66 Received Heat Transfer 891 | . 126 72 693 Siege Activations . | . . . . Martial Activations . | . . . . Shielding Activations . | . . . . Robots Disrupted . | . . . . Combat Hostiles . | . . . . Robots Corrupted . | . . . . Combat Hostiles . | . . . . Parts Fried 1 | . . . 1 Impact Corruptions . | . . . . Robots Melted . | . . . . Combat Hostiles . | . . . . Parts Melted 1 | . . . 1 Heat Transferred 160 | . . . 160 Parts Sabotaged . | . . . . Parts Stolen . | . . . . Parts Stripped . | . . . . Power Chain Reactions . | . . . . Alert | -11 -10 -10 -8 ------- Run | Yrd Mat Sub Mat Maximum Alert Level 1 | . . . 1 Low Security (%) 98 | 100 100 . 97 Level 1 1 | . . . 2 Level 2 . | . . . . Level 3 . | . . . . Level 4 . | . . . . Level 5 . | . . . . High Security . | . . . . Max Security . | . . . . Peak Influence 277 | . 147 . 277 Initial . | . . . . Average 70 | . 65 . 75 Influence Increases 1224 | . 361 . 863 Destroy 0b10 Robot/C 620 | . 220 . 400 Destroy 0b10 Robot/NC 140 | . 35 . 105 Destroy Leader 152 | . 50 . 102 Successful Hack 5 | . 5 . . Destroy Structure 82 | . 21 . 61 Lose Combat Pursuer 225 | . 30 . 195 Influence Decreases 957 | . 291 70 596 Entered New Map 34 | . . 34 . Time Decay 766 | . 271 36 459 Lost Part 157 | . 20 . 137 Squads Dispatched 7 | . 2 . 5 Investigation 2 | . . . 2 Extermination . | . . . . Reinforcement 5 | . 2 . 3 Assault . | . . . . Garrison . | . . . . Intercept . | . . . . Searches Triggered . | . . . . Construction Impeded 1 | . . . 1 Haulers Reinforced . | . . . . Active Scanning Responses . | . . . . Cargo Convoy Interrupts . | . . . . Stealth | -11 -10 -10 -8 --------- Run | Yrd Mat Sub Mat Distress Signals 3 | . 1 . 2 Communications Jammed . | . . . . Distress Signals . | . . . . Times Spotted 63 | . 22 7 34 Peak Tracking Total 7 | . 4 4 7 Tactical Retreats 11 | . 1 1 9 Traps | -11 -10 -10 -8 ------- Run | Yrd Mat Sub Mat Traps Triggered 2 | . 1 . 1 Indirectly . | . . . . Trap Hack Attempts . | . . . . Triggered . | . . . . Disarmed . | . . . . Reprogrammed . | . . . . Reused . | . . . . Traps Extracted . | . . . . Installed . | . . . . Triggered . | . . . . Machines | -11 -10 -10 -8 ---------- Run | Yrd Mat Sub Mat Machines Disabled 1 | . . 1 . Max in Single Turn 1 | . . 1 . Machines Repaired . | . . . . Machines Dismantled . | . . . . Machines Sabotaged . | . . . . Overloaded Fab Kills . | . . . . Hacking | -11 -10 -10 -8 --------- Run | Yrd Mat Sub Mat Machines Accessed 3 | . 1 . 2 Terminals . | . . . . Fabricators . | . . . . Repair Stations 1 | . 1 . . Recycling Units 1 | . . . 1 Scanalyzers 1 | . . . 1 Garrison Access . | . . . . Total Hacks 13 | . 4 . 9 Successful 8 | . 2 . 6 Failed 5 | . 2 . 3 Catastrophic 1 | . 1 . . Database Lockouts . | . . . . Manual . | . . . . Terminals . | . . . . Fabricators . | . . . . Repair Stations 4 | . 4 . . Recycling Units 6 | . . . 6 Scanalyzers 3 | . . . 3 Garrison Access . | . . . . Terminal Hacks . | . . . . Fabricator Hacks . | . . . . Repair Station Hacks 2 | . 2 . . Scan Component 1 | . 1 . . Repair 1 | . 1 . . Recycling Unit Hacks 4 | . . . 4 Process 2 | . . . 2 Retrieve Matter 2 | . . . 2 Scanalyzer 2 | . . . 2 Insert Component 1 | . . . 1 Analyze 1 | . . . 1 Garrison Access Hacks . | . . . . Unauthorized Hacks . | . . . . Terminals . | . . . . Fabricators . | . . . . Repair Stations . | . . . . Recycling Units . | . . . . Scanalyzers . | . . . . Garrison Access . | . . . . Data Cores Recovered . | . . . . Used . | . . . . Hacking Detections 2 | . . . 2 Full Trace Events 2 | . . . 2 Feedback Events . | . . . . Feedback Blocked . | . . . . Robot Schematics Acquired . | . . . . Robots Built . | . . . . Authchips . | . . . . Time . | . . . . Total Robot Build Rating . | . . . . Part Schematics Acquired 1 | . . . 1 Parts Built . | . . . . Authchips . | . . . . Time . | . . . . Total Part Build Rating . | . . . . Part Studies Acquired . | . . . . Parts Repaired 1 | . 1 . . Time 32 | . 32 . . Parts Recycled . | . . . . Recycled Matter 5 | . . . 5 Retrieved Matter 5 | . . . 5 Retrieved Components . | . . . . Parts Scanalyzed 1 | . . . 1 Part Schematics Acquired 1 | . . . 1 Parts Damaged . | . . . . Bothacking | -11 -10 -10 -8 ------------ Run | Yrd Mat Sub Mat Used RIF Installer . | . . . . Robots Hacked . | . . . . Non-combat . | . . . . Combat . | . . . . Robot Hacks Applied . | . . . . Relay Couplers Released . | . . . . Fabnet Peak Effective % . | . . . . Robots Rewired . | . . . . Allies Hacked . | . . . . Hacks Repelled . | . . . . Allies | -11 -10 -10 -8 -------- Run | Yrd Mat Sub Mat Total Allies . | . . . . Largest Group . | . . . . Highest-Rated Group . | . . . . Highest-Rated Ally . | . . . . Total Orders . | . . . . Ally Attacks . | . . . . Total Damage . | . . . . Kills . | . . . . Allies Corrupted . | . . . . Allies Melted . | . . . . Intel | -11 -10 -10 -8 ------- Run | Yrd Mat Sub Mat Active Infowar (turns) 424 | . . . 424 Terrain 65 | . . . 65 Traps 359 | . . . 359 Robot Analysis Total . | . . . . Derelict Logs Recovered 1 | . . 1 . Drone Launches . | . . . . Drone Recoveries . | . . . . Exploration | -11 -10 -10 -8 ------------- Run | Yrd Mat Sub Mat Turns Passed 3315 | 52 903 607 1753 Spaces Moved 3625 | 56 1067 996 1506 Core 126 | 6 . . 120 Treads . | . . . . Legs 181 | . . . 181 Wheels 469 | 50 82 . 337 Hover 2580 | . 985 996 599 Flight 269 | . . . 269 Fastest Speed 35 | 50 56 56 35 Average Speed 67 | 76 58 56 79 Slowest Speed 195 | 80 120 120 195 Overloaded Moves . | . . . . Propulsion Burnouts . | . . . . Robots Hopped . | . . . . Potential Cave-ins . | . . . . Cave-ins Triggered . | . . . . Exploration Rate (%) 46 | 3 99 51 33 Regions Visited 3 Branch Regions 1 Pre-discovered Areas 1 | . . 1 . Known Exits Taken . | . . . . Unknown Exits Taken 3 | 1 1 1 . Scrap Searched 2 | . . 2 . Spaces Dug 36 | . 5 13 18 Terrain Destroyed 236 | . 30 47 159 Melee 1 | . . . 1 Projectile 6 | . . . 6 AOE 229 | . 30 47 152 Terrain Rammed . | . . . . Walls Destroyed . | . . . . Machines Disabled . | . . . . Actions | -11 -10 -10 -8 --------- Run | Yrd Mat Sub Mat Total 4199 | 61 1258 1023 1857 Wait 228 | . 102 1 125 Move 3622 | 55 1066 995 1506 Hop . | . . . . Pick Up 28 | . 11 5 12 Fast Attach 42 | 6 8 1 27 Attach 24 | . 2 4 18 Detach 26 | . 4 1 21 Swap 6 | . 2 1 3 Drop 27 | . 7 2 18 Fire 180 | . 56 13 111 Melee 16 | . . . 16 Ram . | . . . . Kick . | . . . . Crush . | . . . . Escape Stasis . | . . . . Rewire . | . . . . Trap . | . . . . Miscellaneous . | . . . . Route ------- -11/Scrapyard -10/Materials (discovered 6 exits: [*Mat x3] / [*Min x2] / *Sub) -10/Subcaves -8/Materials History --------- Turn | Location | Event 23 | -11/Scrapyard | Discovered new exit (range 14) 53 | -11/Scrapyard | Entered Materials 187 | -10/Materials | Discovered new exit (range 12) 238 | -10/Materials | Discovered new exit (range 11) 307 | -10/Materials | Build established: Mutant 333 | -10/Materials | Repaired Imp. Hover Unit 523 | -10/Materials | Discovered new exit (range 12) 552 | -10/Materials | Discovered new exit (range 15) 692 | -10/Materials | Discovered new exit (range 6) 948 | -10/Materials | Discovered new exit (range 11) 956 | -10/Materials | Entered Subcaves 957 | -10/Subcaves | Approached by a straggling Scientist 1208 | -10/Subcaves | A swath of the cavern ceiling suddenly collapsed 1238 | -10/Subcaves | Lost 4 parts (1p1n1u1w) 1313 | -10/Subcaves | Discovered new exit (range 9) 1368 | -10/Subcaves | Visited 4L-MR0's lab 1379 | -10/Subcaves | Found Prototype Processor 1563 | -10/Subcaves | Entered Materials 1563 | -8/Materials | Evolved 4 slots: Propulsion x1, Utility x3 1570 | -8/Materials | Identified Rainbow Chip 1571 | -8/Materials | Attached Rainbow Chip, gained temporary slots: Power, Propulsion, Utility, Weapon 1995 | -8/Materials | Lost 7 parts (1p2n1u3w) 2753 | -8/Materials | Core integrity fell below 50% 2841 | -8/Materials | Lost 8 parts (1p3n2u2w) 2924 | -8/Materials | Core integrity fell below 20% 3304 | -8/Materials | Build established: Scavenger-Mutant 3316 | -8/Materials | Destroyed by G-47 Trooper with Particle Gun Last Messages --------------- 03128_ Acquired 5 matter. 03136_ The unstable cave ceiling collapses. 03184_ Sneak attack on U-05 Engineer. 03184_ U-05 Engineer destroyed. 03186_ Acquired 18 matter. 03189_ Sneak attack on U-05 Engineer. 03189_ U-05 Engineer destroyed. 03191_ Acquired 21 matter. 03192_ System corrupted: Matter fused (-6). 03198_ The unstable cave ceiling collapses. 03222_ System corrupted: Substantial component data lost. 03279_ G-47 Trooper destroyed. 03282_ Dropped Imp. Grenade Launcher. 03283_ Dropped Cesium-ion Thruster. 03283_ Acquired Imp. Grenade Launcher. 03299_ G-47 Trooper destroyed. 03302_ Critical hit (Burn: +37). 03309_ G-47 Trooper destroyed. 03314_ Wheel destroyed. Map ----- +----------------------------------------------------+ | | | | | | | | | | | | | | | | | | | | | | | | | ?????????????????????????????????? | | ?????????????????????????????????? | | ?????????????????????????????????? | | ????###############??????????????? | | ????# ! =# ! ! #??????????????? | | ????# [# #??????????????? | | ????#* # """#??????????????? | | ????# # """#???########???? | | ????# !* # """#???# #???? | | ????# # ##### " #???? | | ?########+######+## # T #???? | | ?# # + ! " #???? | | ?# #g######### # #???? | | ?#! #@#???????## ## [] #???? | | ?# "Y"=+%#????????# #########???? | | ?#! """!#g###### #?????????? | | ?# #= + #?????????? | | ?#####+## ### #####??##### | | ?????# #?# % #??# | | ?????# #?# = #??# | | ?????# #?# #??# | | ?????# #?# #??# | | ?????# #?##### ## #### | | ?????## ####???### | | ??????# #?????# #########+### | | ??????#! !#?????# #?????? ?? | | ??????##!!!!##?????# #????? ?? | | ???????#########???# #???? """" ? | | ?????????########### #???# """" ? | | ?????????# # #???# """" # | | ?????????# # ############# | | ?????????# # | | ?????????# + | | ?????????# # | | ?????????# ####+########## | | ?????????# ## #???????? | | ?????????# | ## #???????? | | ?????????## ##+##+### #???????? | +----------------------------------------------------+ Best States ------------- Heat Dissipation 31 Energy Generation 19 Energy Capacity 300 Matter Stores 234 Matter Capacity 400 Sight Range 16 Terrain Scan Range 16 Terrain Scan Density 10 Additional Mass Support 9 Evasion (%) 63 Targeting Accuracy 8 Item Schematics ----------------- Weight Redist. System | -8/Materials | Scanalyzed Robot Schematics ------------------ None Fabricated ------------ Nothing Repaired ---------- Imp. Hover Unit | 65% | -10/Materials Studied --------- None Alien Tech Used ----------------- None Achievements -------------- Mistaken Identity Challenges ------------ None Game ------ Seed WardroneTitaniumDrivehammer Manual? 0 Play Time 00:56:32 Cumulative 28.8 hours Start 2026.02.11 @ 16:45:01 End 2026.02.11 @ 18:18:16 Sessions 1 Manual Loads 0 Difficulty Rogue Special Mode None Game No. 26 Rogue 26 Adventurer 0 Explorer 0 Win Type - Total 0 Types 0/0/0/0/0/0/0/0/0/0 Lore% 16 Gallery% 14 Achievement% 13 Wizard Run 0 Options --------- Layout 1 ASCII 0 Keyboard 1 Movement Numpad Keybinds 0 Fullscreen 2 Font 24/Cog Map View 50x35 Zoom Use 0% Tactical HUD 1 Map Filters NONE Filters NONE Steam 1 RUN: 673acf75-81d8-4b48-89fd-91b02b71e5f9